bitfinex-derivatives/quotes_ETHF0:USTF0_20250205
["timestamp","ask_amount","ask_price","bid_price","bid_amount"]
[1738764206274,0.8615,2808.9,2808.7,0.00533438]
[1738764206475,0.71179,2808.8,2808.7,0.00533438]
[1738764206670,1.1463,2808.9,2808.7,0.00533438]
[1738764207368,2.0363,2808.9,2808.7,0.00533438]
[1738764207766,1.4596,2808.9,2808.7,0.00533438]
[1738764207973,1.4596,2808.9,2808.7,8.21313438]
[1738764208272,1.4596,2808.9,2808.8,4.66079891]
[1738764208471,3.2078,2809.9,2808.8,4.66079891]
[1738764208673,3.2078,2809.9,2809.3,3.2078]
[1738764209266,3.2078,2809.9,2809.4,0.5315]
[1738764209670,3.2078,2809.9,2808.9,3.2078]
[1738764209671,3.8077,2809.9,2808.9,3.2078]
[1738764209973,4.0698,2809.9,2808.9,3.7393]
[1738764210372,4.0698,2809.9,2809.2,3.2078]
[1738764211273,2.2855,2809.9,2809.2,3.2078]
[1738764211871,2.2855,2809.9,2809.6,3.2078]
[1738764214874,2.2855,2809.9,2809.6,11.20303714]
[1738764215075,0.5305,2811.2,2809.8,2.99523714]
[1738764215275,0.5305,2811.2,2810.7,3.2078]
[1738764215477,0.0892,2811.1,2810.7,3.2078]
[1738764215780,0.0892,2811.1,2811.0,3.2078]
[1738764215970,0.0892,2811.1,2810.6,3.2078]
[1738764216177,0.3737,2811.1,2810.9,3.2078]
[1738764216374,0.00533438,2811.1,2810.9,6.20303714]
[1738764216572,0.66733438,2811.2,2811.1,0.71121]
[1738764216782,0.66733438,2811.2,2811.1,5.71121]
[1738764217178,0.66733438,2811.2,2811.1,9.6405632]
[1738764217479,3.7504,2812.6,2811.1,9.6405632]
[1738764217682,3.9785,2812.6,2811.8,3.2078]
[1738764218179,0.00533438,2812.5,2811.8,3.2078]
[1738764218378,3.2078,2812.2,2811.3,3.2078]
[1738764218582,3.21313438,2812.5,2811.3,3.2078]
[1738764218883,3.2078,2812.0,2811.3,3.2078]
[1738764219077,3.2078,2811.5,2810.6,0.00533438]
[1738764219381,3.2078,2810.8,2810.6,0.00533438]
[1738764219578,0.549,2810.7,2810.6,0.00533438]
[1738764219982,0.549,2810.7,2809.8,3.2078]
[1738764220281,40.8,2810.6,2809.8,3.2078]
[1738764220787,3.2078,2810.5,2809.8,3.2078]
[1738764220980,3.2078,2810.2,2809.5,3.2078]
[1738764221177,0.5742,2810.4,2809.5,3.2078]
[1738764221481,0.5742,2810.4,2809.9,0.00533438]
[1738764221883,0.71149,2810.0,2809.2,3.2078]
[1738764222084,0.5742,2810.4,2808.7,3.2078]
[1738764222085,3.2078,2809.3,2808.7,3.2078]
[1738764222281,0.7116,2809.6,2808.7,3.2078]
[1738764222282,3.9194,2809.6,2808.7,3.2078]
[1738764222477,3.9194,2809.6,2808.3,4.72360175]
[1738764222478,0.574,2809.5,2809.0,3.2078]
[1738764222985,0.574,2809.5,2808.7,3.2078]
[1738764223287,0.5794,2809.4,2809.0,0.00533438]
[1738764226980,0.00533438,2809.5,2809.1,3.2078]
[1738764227388,0.00533438,2809.5,2809.4,3.2078]
[1738764229787,0.00533438,2809.5,2809.4,8.2078]
[1738764230080,0.00533438,2809.5,2809.4,7.93261866]
[1738764230386,0.00533438,2809.5,2809.4,12.93261866]
[1738764230586,0.00533438,2809.5,2809.4,7.93261866]
[1738764230882,0.00533438,2809.5,2809.4,12.93261866]
[1738764231187,0.00533438,2809.5,2809.4,7.93261866]
[1738764231982,0.23133438,2809.5,2809.4,7.93261866]
[1738764234484,0.23133438,2809.5,2809.4,3.2078]
[1738764235391,0.23133438,2809.5,2809.4,7.79282247]
[1738764235980,0.23133438,2809.5,2809.4,12.79282247]
[1738764236186,0.22593438,2809.5,2809.4,16.93707799]
[1738764236487,3.7675,2811.1,2809.4,16.93707799]
[1738764236488,1.1152,2811.0,2809.4,20.07385836]
[1738764236685,1.1152,2811.0,2810.8,3.2078]
[1738764236686,0.87463438,2810.9,2810.8,3.2078]
[1738764237487,0.00533438,2811.1,2810.8,13.18770615]
[1738764237691,0.00533438,2811.1,2811.0,0.71124]
[1738764237889,0.00533438,2811.1,2810.8,16.62032167]
[1738764238093,0.00533438,2811.1,2811.0,4.54320932]
[1738764238392,0.00533438,2811.1,2810.8,3.2078]
[1738764238588,0.87463438,2810.9,2810.6,0.00533438]
[1738764238788,0.87463438,2810.7,2810.6,0.00533438]
[1738764241889,0.87463438,2810.7,2810.4,3.2078]
[1738764242098,0.87463438,2810.5,2810.4,3.2078]
[1738764242392,0.87463438,2810.6,2810.4,3.2078]
[1738764242592,1.42353438,2810.8,2810.4,3.2078]
[1738764242895,1.42353438,2810.8,2810.7,3.2078]
[1738764242896,0.87463438,2810.8,2810.7,3.2078]
[1738764243092,0.5811,2811.0,2810.7,3.2078]
[1738764243290,0.00533438,2811.1,2810.7,7.78875096]
[1738764243889,0.87996876,2811.1,2810.7,7.78875096]
[1738764244085,0.87463438,2810.9,2810.7,3.2078]
[1738764244295,0.87996876,2811.1,2810.7,3.2078]
[1738764244989,0.00533438,2811.1,2810.8,4.63651212]
[1738764245590,0.00533438,2811.1,2811.0,3.2078]
[1738764246596,0.87996876,2811.1,2810.7,3.2078]
[1738764246889,0.87463438,2810.5,2810.4,1.4576]
[1738764247091,4.79379438,2810.5,2810.3,0.00533438]
[1738764247288,0.87463438,2810.4,2810.3,0.00533438]
[1738764247494,4.08243438,2810.4,2810.3,0.00533438]
[1738764247685,4.08243438,2810.4,2809.3,4.9688]
[1738764247890,3.43261552,2810.8,2809.3,4.6128]
[1738764247891,0.87463438,2809.7,2809.3,4.6128]
[1738764248092,0.87463438,2809.5,2809.3,3.2078]
[1738764250996,0.87463438,2809.5,2809.4,4.5248074]
[1738764251389,0.87463438,2809.5,2809.3,3.2078]
[1738764252190,0.87463438,2809.4,2808.9,3.2078]
[1738764252392,0.00533438,2809.7,2808.9,3.2078]
[1738764252697,0.87463438,2809.1,2808.9,7.91362598]
[1738764253391,0.87463438,2809.0,2808.9,7.91362598]
[1738764253594,0.87463438,2809.0,2808.9,3.2078]
[1738764254392,3.2078,2809.5,2808.9,7.81841412]
[1738764254587,0.00533438,2809.7,2809.2,3.2078]
[1738764254993,0.87463438,2809.3,2808.9,3.2078]
[1738764255290,0.87463438,2809.1,2808.9,3.2078]
[1738764255493,0.87463438,2809.0,2808.9,3.2078]
[1738764256696,0.87463438,2809.0,2807.8,1.78009]
[1738764256697,0.87463438,2809.0,2808.5,3.2078]
[1738764256893,0.87463438,2808.1,2807.8,3.2078]
[1738764257195,1.1025,2808.9,2807.8,3.2078]
[1738764257196,0.87463438,2807.9,2807.8,3.2078]
[1738764257695,0.00533438,2808.2,2807.8,3.2078]
[1738764257889,0.00533438,2808.2,2807.8,7.91712276]
[1738764258493,0.00533438,2808.2,2808.1,3.2078]
[1738764258691,3.2078,2809.4,2808.1,3.91977]
[1738764258896,3.2078,2809.4,2808.6,3.2078]
[1738764258897,0.87463438,2808.9,2808.6,3.2078]
[1738764259094,0.87463438,2808.9,2808.3,3.2078]
[1738764259295,0.87463438,2808.6,2808.3,3.2078]
[1738764259494,0.87463438,2808.6,2808.3,7.88146468]
[1738764259703,0.87463438,2808.6,2808.3,4.67366468]
[1738764259997,0.87463438,2808.4,2808.3,7.88146468]
[1738764260196,0.00533438,2808.7,2808.2,0.00533438]
[1738764260197,0.87463438,2808.6,2808.2,0.00533438]
[1738764261299,0.00533438,2808.7,2808.4,3.2078]
[1738764261704,0.00533438,2808.7,2808.5,4.65505264]
[1738764262399,0.00533438,2808.7,2808.6,2.99727829]
[1738764262802,0.00533438,2808.7,2808.6,12.71219871]
[1738764263399,0.00533438,2808.7,2808.6,4.71492042]
[1738764263798,0.00533438,2808.7,2808.5,4.66082194]
[1738764264002,0.00533438,2808.7,2808.6,4.66082194]
[1738764264798,0.00533438,2808.7,2808.5,4.56556813]
[1738764265201,0.00533438,2808.7,2808.6,4.56556813]
[1738764265699,0.00533438,2808.7,2808.5,5.27741813]
[1738764265899,0.00533438,2808.7,2808.6,4.70005686]
[1738764266104,0.00533438,2808.7,2808.6,7.69733515]
[1738764266300,0.00533438,2808.7,2808.6,2.99727829]
[1738764266503,0.00533438,2808.7,2808.6,7.69733515]
[1738764267010,0.00533438,2808.7,2808.6,8.40917515]
[1738764267212,0.00533438,2808.7,2808.6,7.69733515]
[1738764267805,0.00533438,2808.7,2808.6,8.40917515]
[1738764268004,0.00533438,2808.7,2808.6,7.69733515]
[1738764268305,0.87996876,2808.7,2808.6,4.70005686]
[1738764268606,0.87996876,2808.7,2808.2,0.00533438]
[1738764268804,0.87463438,2808.3,2808.2,0.00533438]
[1738764270498,0.00533438,2808.7,2808.2,4.69175727]
[1738764270703,0.87996876,2808.7,2808.6,3.2078]
[1738764270903,0.00533438,2808.7,2808.6,3.2078]
[1738764271109,0.00533438,2808.7,2808.6,7.92923674]
[1738764272004,0.00533438,2808.7,2808.6,18.03935503]
[1738764272804,0.5681,2809.5,2808.8,0.71178]
[1738764273010,0.87463438,2809.3,2809.2,3.2078]
[1738764273506,0.5402,2809.9,2809.2,10.89249505]
[1738764273709,0.87463438,2809.8,2809.6,3.2078]
[1738764273918,0.87996876,2809.8,2809.6,3.2078]
[1738764274109,0.87996876,2809.8,2809.7,4.52261305]
[1738764277111,0.00533438,2809.8,2809.7,9.52261305]
[1738764277315,0.00533438,2809.8,2809.7,10.23418305]
[1738764277610,3.2078,2810.9,2809.7,10.76490094]
[1738764277816,3.2078,2810.9,2810.4,3.2078]
[1738764278200,0.87463438,2810.5,2810.4,3.2078]
[1738764278811,0.87463438,2810.5,2810.3,3.2078]
[1738764279108,0.87463438,2810.5,2809.7,0.71156]
[1738764279109,0.87463438,2810.3,2809.6,3.2078]
[1738764279313,0.87463438,2809.7,2809.6,3.2078]
[1738764280113,1.1409,2810.2,2809.6,7.90708024]
[1738764280413,0.00533438,2810.7,2810.0,3.2078]
[1738764280611,0.87463438,2810.5,2810.3,3.2078]
[1738764280812,0.00533438,2810.7,2810.3,3.2078]
[1738764281018,0.87463438,2810.4,2810.3,3.2078]
[1738764281811,0.00533438,2810.7,2810.3,7.92204646]
[1738764282119,0.87463438,2810.4,2810.3,7.92204646]
[1738764282411,0.87463438,2810.4,2810.3,3.2078]
[1738764283719,0.87463438,2810.4,2810.3,7.88158704]
[1738764285017,0.00533438,2810.7,2810.3,7.88158704]
[1738764285219,0.87463438,2810.5,2810.3,4.67378704]
[1738764285417,0.87463438,2810.5,2810.4,3.2078]
[1738764285719,0.00533438,2810.7,2810.4,3.2078]
[1738764285912,0.87463438,2810.6,2810.4,7.78325122]
[1738764286714,0.00533438,2810.7,2810.4,7.78325122]
[1738764287114,0.5363,2812.0,2810.7,0.71131]
[1738764287315,0.5363,2812.0,2811.3,3.2078]
[1738764287520,0.87463438,2811.7,2811.6,3.2078]
[1738764288024,0.87463438,2811.7,2811.4,4.60201865]
[1738764288317,0.5421,2811.9,2811.5,3.2078]
[1738764288521,0.87463438,2811.7,2811.5,3.2078]
[1738764288721,0.87463438,2811.7,2811.6,4.58640969]
[1738764289519,0.00533438,2811.9,2811.6,4.58640969]
[1738764289719,0.00533438,2811.9,2811.8,3.2078]
[1738764290218,0.00533438,2811.9,2811.8,7.90462691]
[1738764290414,0.87996876,2811.9,2811.8,7.90462691]
[1738764290614,0.87996876,2811.9,2811.8,3.2078]
[1738764291025,0.87996876,2811.9,2811.4,3.21313438]
[1738764291320,0.87463438,2811.5,2811.4,0.00533438]
[1738764291719,0.87463438,2811.5,2811.1,1.4]
[1738764291924,0.87463438,2811.2,2811.1,1.4]
[1738764292117,41.67463438,2811.2,2811.1,1.4]
[1738764292418,41.67463438,2811.2,2810.7,3.2078]
[1738764292620,0.87463438,2810.9,2810.7,3.2078]
[1738764292819,0.87463438,2810.8,2810.7,3.2078]
[1738764293021,0.87463438,2810.9,2810.8,4.56339828]
[1738764293224,0.87463438,2810.9,2810.7,7.77119828]
[1738764293422,0.87463438,2810.8,2810.7,3.2078]
[1738764293825,0.5529,2811.1,2810.7,7.77119828]
[1738764294018,0.87463438,2810.9,2810.7,7.77119828]
[1738764294220,0.87463438,2810.8,2810.7,3.2078]
[1738764294621,0.87463438,2810.8,2810.5,0.00533438]
[1738764294822,0.87463438,2810.6,2810.5,0.00533438]
[1738764295522,0.87463438,2810.6,2810.0,3.2078]
[1738764295729,0.87463438,2810.1,2810.0,3.2078]
[1738764297333,0.87463438,2810.1,2809.8,0.00533438]
[1738764297537,0.87463438,2809.9,2809.8,0.00533438]
[1738764298434,0.87463438,2809.9,2809.7,3.2078]
[1738764298634,1.41943438,2809.8,2809.7,3.2078]
[1738764301441,1.41943438,2809.8,2809.2,3.2078]
[1738764301639,0.5571,2809.7,2809.2,3.2078]
[1738764301834,0.87463438,2809.3,2809.2,3.2078]
[1738764302039,0.87463438,2809.3,2809.1,4.53388647]
[1738764302240,0.87463438,2809.2,2808.9,3.5638]
[1738764302439,0.87463438,2809.1,2808.9,3.2078]
[1738764302635,0.87463438,2809.0,2808.5,7.09201894]
[1738764302931,0.87463438,2808.8,2808.6,4.6088]
[1738764303134,0.87463438,2808.8,2808.7,4.70306678]
[1738764303335,0.87463438,2808.8,2808.6,9.31186678]
[1738764303541,0.87463438,2808.8,2808.6,3.2078]
[1738764304045,0.87463438,2808.8,2808.7,4.70306678]
[1738764304640,0.5571,2809.7,2808.7,9.70306678]
[1738764304841,0.87463438,2809.6,2809.5,3.2078]
[1738764305039,1.0871,2810.2,2809.5,3.2078]
[1738764305344,1.0871,2810.2,2809.8,3.2078]
[1738764305345,0.5591,2810.2,2809.8,3.2078]
[1738764305737,0.87463438,2809.9,2809.6,4.58478748]
[1738764306036,0.87463438,2809.7,2809.5,3.2078]
[1738764306236,5.14213438,2809.6,2808.9,3.2078]
[1738764306436,0.5591,2809.5,2808.9,3.2078]
[1738764306741,0.87463438,2809.0,2808.9,3.2078]
[1738764309130,0.5591,2809.5,2808.9,7.76275563]
[1738764309255,0.5591,2809.5,2809.2,3.2078]
[1738764309439,3.2078,2809.9,2809.2,3.2078]
[1738764309635,3.2078,2809.9,2809.3,7.99480892]
[1738764309835,0.00533438,2810.3,2809.8,3.2078]
[1738764310341,0.87463438,2810.1,2809.9,4.60741583]
[1738764310548,0.00533438,2810.3,2810.2,0.71144]
[1738764310848,0.00533438,2810.3,2810.2,4.15129329]
[1738764311142,0.5791,2811.1,2810.2,13.12901241]
[1738764311341,0.87463438,2811.0,2810.9,3.2078]
[1738764312442,0.00533438,2811.2,2810.9,7.8178958]
[1738764313547,0.00533438,2811.2,2811.0,4.84485329]
[1738764313751,0.5791,2812.0,2811.2,0.71118]
[1738764314041,0.5791,2812.0,2811.0,4.84485329]
[1738764314042,0.5791,2812.0,2811.7,3.2078]
[1738764314443,0.87463438,2811.8,2811.7,3.2078]
[1738764314645,0.5587,2812.5,2811.8,4.63159268]
[1738764314948,0.00533438,2812.4,2812.1,3.2078]
[1738764315343,0.87463438,2812.2,2812.1,3.2078]
[1738764317242,0.87463438,2812.2,2811.7,3.2078]
[1738764317449,0.87463438,2811.4,2811.3,3.2078]
[1738764317648,0.00533438,2812.4,2811.3,3.2078]
[1738764317649,0.87463438,2811.7,2811.3,3.2078]
[1738764317848,0.87463438,2811.6,2811.3,3.2078]
[1738764318448,0.87463438,2811.4,2811.3,3.2078]
[1738764319248,0.87463438,2811.4,2811.3,7.72506742]
[1738764319552,40.8,2812.2,2811.3,7.72506742]
[1738764319749,0.87463438,2811.4,2811.3,7.72506742]
[1738764319947,0.87463438,2811.4,2810.8,0.5474]
[1738764319948,0.87463438,2811.4,2810.8,3.2078]
[1738764320147,3.2078,2811.7,2810.8,3.2078]
[1738764320148,0.87463438,2810.9,2810.8,3.2078]
[1738764321052,1.6707,2811.6,2810.8,3.2078]
[1738764321247,0.87463438,2811.1,2810.8,3.2078]
[1738764321453,0.87463438,2811.4,2810.8,7.73065441]
[1738764321654,0.87463438,2811.4,2811.3,3.2078]
[1738764323451,0.87463438,2811.4,2811.3,7.73884435]
[1738764323652,0.5664,2812.1,2811.3,7.73884435]
[1738764323853,0.5664,2812.1,2811.7,3.2078]
[1738764324252,0.87463438,2811.8,2811.7,3.2078]
[1738764326053,3.2078,2812.2,2811.7,3.2078]
[1738764326355,0.87463438,2811.9,2811.7,3.2078]
[1738764327854,0.87463438,2811.8,2811.4,3.2078]
[1738764328054,0.87463438,2811.5,2811.4,3.2078]
[1738764328251,0.87463438,2811.5,2811.1,3.2078]
[1738764328457,0.87463438,2811.2,2811.1,3.2078]
[1738764328657,0.87463438,2811.2,2810.8,3.2078]
[1738764328960,0.554,2811.3,2810.8,3.2078]
[1738764329254,0.87463438,2810.9,2810.8,3.2078]
[1738764330260,0.87463438,2810.9,2810.7,0.00533438]
[1738764330452,0.87463438,2810.8,2810.7,0.00533438]
[1738764330959,6.58593438,2810.8,2809.8,3.2078]
[1738764331160,0.87463438,2809.9,2809.8,3.2078]
[1738764331459,0.87463438,2810.4,2809.9,0.71151]
[1738764331657,0.87463438,2810.4,2810.2,3.2078]
[1738764332162,3.2078,2810.9,2810.3,4.57364584]
[1738764332163,0.00533438,2810.6,2810.3,4.57364584]
[1738764332361,0.87463438,2810.4,2810.3,4.57364584]
[1738764332660,0.00533438,2810.6,2810.3,4.57364584]
[1738764332960,0.87463438,2810.4,2810.3,4.57364584]
[1738764333762,0.87463438,2810.4,2810.2,3.2078]
[1738764333950,0.87463438,2810.3,2810.2,3.2078]
[1738764335757,0.87463438,2810.3,2810.0,0.00533438]
[1738764335952,0.87463438,2810.1,2810.0,0.00533438]
[1738764337559,5.87463438,2810.1,2809.2,3.2078]
[1738764337763,0.87463438,2809.4,2809.1,0.356]
[1738764337952,0.87463438,2809.4,2809.3,7.90826509]
[1738764338157,4.3404,2810.5,2809.3,7.90826509]
[1738764338457,4.3404,2810.5,2809.6,3.2078]
[1738764338652,0.87463438,2810.0,2809.6,3.2078]
[1738764338854,1.1326,2810.5,2809.9,3.2078]
[1738764339059,0.87463438,2810.3,2810.2,3.2078]
[1738764339259,0.87463438,2810.4,2810.2,3.2078]
[1738764340368,0.87463438,2810.3,2810.2,3.2078]
[1738764341269,0.00533438,2810.6,2810.2,7.88531242]
[1738764341563,0.87463438,2810.4,2810.2,7.88531242]
[1738764341764,0.87463438,2810.4,2810.2,10.87875093]
[1738764342961,0.00533438,2810.6,2810.2,10.87875093]
[1738764343163,0.00533438,2810.6,2810.5,6.20123851]
[1738764343568,0.87996876,2810.6,2810.5,10.84768552]
[1738764343968,0.00533438,2810.6,2810.5,10.84768552]
[1738764345567,0.87996876,2810.6,2810.5,10.84768552]
[1738764346559,0.00533438,2810.6,2810.5,10.84768552]
[1738764347168,0.00533438,2810.6,2810.5,11.55904552]
[1738764347368,1.987,2812.1,2810.9,0.71126]
[1738764347571,0.87463438,2811.4,2811.3,3.2078]
[1738764347771,0.5301,2812.0,2811.3,3.2078]
[1738764347772,0.87463438,2811.6,2811.3,3.2078]
[1738764348069,0.5301,2812.0,2811.3,3.2078]
[1738764348070,3.2078,2813.1,2812.1,0.71094]
[1738764348280,3.2078,2813.1,2812.6,2.99343851]
[1738764348471,3.2078,2813.1,2812.4,3.2078]
[1738764348673,0.87463438,2812.5,2812.4,3.2078]
[1738764349069,0.87463438,2812.5,2812.4,7.77424213]
[1738764349766,0.87463438,2812.5,2812.2,0.00533438]
[1738764349967,0.87463438,2812.3,2812.2,0.00533438]
[1738764350876,0.87463438,2812.3,2811.8,3.2078]
[1738764351079,0.87463438,2811.9,2811.8,3.2078]
[1738764351871,0.5459,2812.2,2811.8,3.2078]
[1738764351872,0.5459,2812.2,2811.8,7.90762899]
[1738764352071,0.87463438,2812.0,2811.8,7.90762899]
[1738764354279,0.5459,2812.2,2811.8,7.90762899]
[1738764354572,0.87463438,2812.2,2811.8,7.90762899]
[1738764354778,0.87463438,2812.2,2812.0,3.43239699]
[1738764354975,0.87463438,2812.2,2812.1,3.2078]
[1738764355577,0.87463438,2812.2,2812.1,7.79951258]
[1738764356778,0.5743,2812.7,2812.1,7.79951258]
[1738764356980,0.87463438,2812.6,2812.5,3.2078]
[1738764358975,3.2078,2813.1,2812.5,3.2078]
[1738764359280,0.87463438,2812.8,2812.5,7.8924867]
[1738764359980,0.87463438,2812.6,2812.5,7.8924867]
[1738764360476,0.87463438,2812.6,2812.5,3.2078]
[1738764360680,0.87463438,2812.6,2812.0,3.2078]
[1738764360887,0.87463438,2812.1,2812.0,3.2078]
[1738764361470,0.87463438,2812.1,2811.7,3.2078]
[1738764361676,0.87463438,2811.7,2811.3,3.2078]
[1738764361969,3.2078,2812.0,2811.3,7.93153932]
[1738764362276,0.87463438,2811.4,2811.3,3.2078]
[1738764362480,41.364,2812.5,2811.3,3.2078]
[1738764362481,0.87463438,2811.6,2811.3,3.2078]
[1738764362676,0.87463438,2811.6,2811.4,4.64584577]
[1738764362876,0.87463438,2811.6,2811.3,7.85364577]
[1738764363080,0.87463438,2811.4,2811.3,7.85364577]
[1738764363481,0.87463438,2811.4,2811.3,3.2078]
[1738764363681,0.87463438,2811.4,2811.3,7.92558833]
[1738764364280,0.87463438,2811.4,2810.9,0.356]
[1738764364484,3.2078,2811.7,2811.1,3.2078]
[1738764364775,3.21313438,2811.7,2811.1,3.2078]
[1738764365084,0.87996876,2811.7,2811.4,3.2078]
[1738764365476,0.87463438,2811.5,2811.2,8.11546974]
[1738764365783,0.87463438,2811.5,2811.2,1.4]
[1738764366178,0.87463438,2811.5,2811.3,4.6635927]
[1738764366386,0.00533438,2811.7,2811.3,4.6635927]
[1738764366585,0.87463438,2811.4,2811.3,4.6635927]
[1738764366785,0.87463438,2811.4,2811.2,1.4]
[1738764366988,0.87463438,2811.3,2811.1,3.2078]
[1738764367281,0.57993438,2811.7,2810.5,0.5657]
[1738764367282,0.87463438,2811.2,2810.7,4.6088]
[1738764367585,3.2078,2811.4,2810.7,9.17367919]
[1738764367786,0.87463438,2810.8,2810.7,9.17367919]
[1738764367978,0.87463438,2810.8,2810.1,3.2078]
[1738764368179,0.87463438,2810.2,2809.7,3.2078]
[1738764368380,3.2078,2810.3,2809.7,3.2078]
[1738764368381,0.87463438,2809.8,2809.7,3.2078]
[1738764368879,0.00533438,2810.0,2809.7,7.87143034]
[1738764369079,0.00533438,2810.0,2809.9,3.43239699]
[1738764369479,0.00533438,2810.0,2809.9,7.96240526]
[1738764371689,0.87996876,2810.0,2809.3,3.2078]
[1738764371985,0.87463438,2809.4,2809.3,3.2078]
[1738764372784,0.87463438,2809.4,2809.3,7.86525239]
[1738764373485,0.87463438,2809.4,2809.3,4.65745239]
[1738764373977,0.87463438,2809.4,2809.3,3.2078]
[1738764374179,0.87463438,2809.4,2809.3,7.87299024]
[1738764375990,1.0908,2809.9,2809.3,7.87299024]
[1738764376286,0.87463438,2809.5,2809.3,7.87299024]
[1738764378076,0.87463438,2809.4,2809.3,7.87299024]
[1738764378783,0.5587,2809.9,2809.3,7.87299024]
[1738764378985,0.87463438,2809.9,2809.5,2.9949051]
[1738764379286,0.87463438,2809.8,2809.7,3.2078]
[1738764380385,0.00533438,2810.0,2809.8,0.71154]
[1738764380585,0.00533438,2810.0,2809.9,4.4039051]
[1738764380785,0.00533438,2810.0,2809.9,10.31664891]
[1738764381383,0.00533438,2810.0,2809.9,15.31664891]
[1738764382188,0.00533438,2810.0,2809.9,9.60513891]
[1738764382388,0.87996876,2810.0,2809.9,5.20123381]
[1738764383390,0.87996876,2810.0,2809.9,4.65383381]
[1738764383589,0.87996876,2810.0,2809.7,3.2078]
[1738764383796,0.87463438,2809.8,2809.7,3.2078]
[1738764385097,0.87463438,2809.8,2809.7,7.75978293]
[1738764386197,0.87463438,2809.8,2809.7,3.2078]
[1738764388685,3.7637,2809.9,2809.0,3.2078]
[1738764388891,3.2078,2809.6,2809.0,3.2078]
[1738764389086,3.2078,2809.6,2808.5,3.5223051]
[1738764389289,3.2078,2809.3,2808.5,3.5223051]
[1738764389491,3.2078,2809.3,2808.6,4.63424929]
[1738764389695,3.2078,2809.3,2808.2,3.3509051]
[1738764389897,0.5662,2809.5,2808.1,3.5646]
[1738764389898,3.2078,2808.9,2808.1,3.5646]
[1738764390094,1.1321,2808.8,2808.0,1.404]
[1738764390295,3.2078,2808.6,2808.0,1.7608]
[1738764390595,1.1321,2808.8,2808.1,4.68171941]
[1738764390596,0.5662,2808.7,2808.1,4.68171941]
[1738764390795,0.00533438,2808.6,2808.1,4.68171941]
[1738764392198,0.00533438,2808.6,2808.3,3.2078]
[1738764392890,3.21313438,2808.6,2808.0,1.7608]
[1738764393087,3.2078,2808.2,2807.6,3.2078]
[1738764393295,3.21313438,2808.6,2807.9,3.2078]
[1738764393598,3.78543438,2808.6,2807.9,7.77660074]
[1738764393800,3.78543438,2808.6,2807.9,3.2078]
[1738764394104,3.78543438,2808.6,2808.0,4.56880074]
[1738764395401,0.57763438,2808.6,2808.2,6.2027051]
[1738764395696,0.00533438,2808.6,2808.5,2.9949051]
[1738764395891,0.00533438,2808.6,2808.5,4.4059051]
[1738764396095,0.00533438,2808.6,2808.5,9.0104071]
[1738764396703,0.00533438,2808.6,2808.5,12.2182071]
[1738764396892,3.2078,2809.7,2808.8,0.71178]
[1738764397091,3.2078,2809.7,2808.5,17.2182071]
[1738764397092,3.2078,2810.2,2809.3,2.9949051]
[1738764397495,3.2078,2810.2,2809.4,4.5411477]
[1738764397902,3.2078,2810.2,2809.4,7.7489477]
[1738764398099,3.2078,2809.7,2809.5,0.00533438]
[1738764398296,0.5475,2809.6,2809.5,0.00533438]
[1738764401503,8.5424051,2809.6,2808.0,2.9949051]
[1738764401706,3.2078,2809.1,2808.3,3.2078]
[1738764402103,3.2078,2809.1,2808.5,4.59554694]
[1738764402604,3.2078,2809.1,2808.3,3.2078]
[1738764402996,3.2078,2809.1,2808.4,7.56996113]
[1738764403202,0.569,2809.5,2809.0,2.9949051]
[1738764403398,0.5475,2809.6,2809.0,2.9949051]
[1738764403600,0.5475,2809.6,2809.1,4.52947154]
[1738764404199,3.2078,2809.4,2808.7,6.2027051]
[1738764404707,3.2078,2809.4,2808.8,4.52523296]
[1738764405501,0.5475,2809.6,2808.8,4.52523296]
[1738764405502,3.2078,2809.1,2808.8,4.52523296]
[1738764405808,3.2078,2809.1,2808.4,3.741]
[1738764406099,3.2078,2809.1,2808.6,4.61886437]
[1738764406609,3.2078,2809.1,2808.4,3.741]
[1738764407004,3.2078,2809.1,2808.5,4.68778224]
[1738764407196,3.7391,2809.1,2808.5,4.68778224]
[1738764407405,3.2078,2808.8,2808.1,3.2078]
[1738764407609,3.2078,2808.4,2807.9,1.9492]
[1738764408111,3.21313438,2808.4,2808.0,4.64220517]
[1738764408509,0.00533438,2808.4,2808.0,4.64220517]
[1738764409897,0.00533438,2808.4,2807.7,3.2078]
[1738764410097,3.21313438,2808.4,2807.7,3.2078]
[1738764410298,3.21313438,2808.4,2807.8,4.67137896]
[1738764410713,3.77843438,2808.4,2807.8,4.67137896]
[1738764411816,3.2078,2808.1,2807.4,3.7356]
[1738764412109,0.5573,2808.0,2807.4,3.7356]
[1738764414309,3.2078,2808.1,2807.5,4.52573569]
[1738764414711,3.21313438,2808.4,2807.7,3.2078]
[1738764414912,3.21313438,2808.4,2807.8,2.9949051]
[1738764415215,3.21313438,2808.4,2807.8,7.55463369]
[1738764416313,0.00533438,2808.4,2808.1,6.2027051]
[1738764416507,0.00533438,2808.4,2808.2,2.5144]
[1738764416710,0.5355,2809.5,2808.9,2.9949051]
[1738764416909,3.2078,2809.8,2808.9,2.9949051]
[1738764417108,3.7433,2809.8,2809.0,4.57432872]
[1738764417308,4.45485,2809.8,2808.7,3.2078]
[1738764417516,3.91943,2809.5,2808.4,3.2078]
[1738764417712,3.2078,2809.2,2808.4,3.2078]
[1738764418010,3.2078,2809.2,2809.0,0.00533438]
[1738764418413,3.9195,2809.2,2809.0,0.00533438]
[1738764418609,1.82032,2809.1,2809.0,0.00533438]
[1738764418809,6.6632,2809.1,2809.0,0.00533438]
[1738764419215,1.6632,2809.1,2809.0,0.00533438]
[1738764420918,6.6632,2809.1,2809.0,0.00533438]
[1738764421312,1.6632,2809.1,2809.0,0.00533438]
[1738764423221,0.5268,2809.1,2809.0,0.00533438]
[1738764423423,3.2078,2809.2,2809.0,0.00533438]
[1738764426014,0.00533438,2809.5,2809.1,7.81638369]
[1738764426325,3.2078,2810.4,2809.4,6.2027051]
[1738764426722,3.2078,2810.4,2809.7,6.2027051]
[1738764426919,44.0078,2810.8,2810.0,2.9949051]
[1738764427140,15.22635385,2811.7,2810.7,2.9949051]
[1738764427423,15.22635385,2811.7,2811.1,2.9949051]
[1738764427731,0.00533438,2811.5,2811.1,2.9949051]
[1738764427924,0.00533438,2811.5,2811.2,0.5339]
[1738764428115,15.22635385,2811.7,2811.4,2.9949051]
[1738764428523,40.8,2812.2,2811.5,4.53339059]
[1738764429324,3.2078,2812.3,2811.7,2.9949051]